bitfinex/quotes_BTCUSD_20251113
["timestamp","ask_amount","ask_price","bid_price","bid_amount"]
[1763024551183,1.38494688,103640.0,103630.0,0.00048436]
[1763024552276,2.04911316,103640.0,103630.0,0.00048436]
[1763024552477,2.06992108,103640.0,103630.0,0.00048436]
[1763024552927,1.24487836,103640.0,103630.0,0.00048436]
[1763024556313,1.22407044,103640.0,103630.0,0.00048436]
[1763024556746,0.7207806,103640.0,103630.0,0.00048436]
[1763024556980,0.96163552,103640.0,103630.0,0.00048436]
[1763024557216,1.13427191,103640.0,103630.0,0.05048436]
[1763024557618,1.13427191,103640.0,103630.0,0.07048436]
[1763024557822,1.13427191,103640.0,103630.0,0.05048436]
[1763024559478,0.63098207,103640.0,103630.0,0.00048436]
[1763024559678,1.21666603,103640.0,103630.0,0.00048436]
[1763024559936,1.24650923,103640.0,103630.0,0.00048436]
[1763024563532,1.22569866,103640.0,103630.0,0.00048436]
[1763024563746,1.22569866,103640.0,103630.0,0.05048436]
[1763024564164,1.2465095,103640.0,103630.0,0.05048436]
[1763024564394,1.22569866,103640.0,103630.0,0.00048436]
[1763024564613,1.24651118,103640.0,103630.0,0.00048436]
[1763024565028,1.22569866,103640.0,103630.0,0.00048436]
[1763024565659,1.14330454,103640.0,103630.0,0.00048436]
[1763024566313,1.13427191,103640.0,103630.0,0.00048436]
[1763024566752,0.56598333,103640.0,103630.0,0.04983436]
[1763024566973,0.81762825,103640.0,103630.0,0.04983436]
[1763024567494,0.86104699,103640.0,103630.0,0.04983436]
[1763024567694,0.85804699,103640.0,103630.0,0.06983436]
[1763024568104,0.86004699,103640.0,103630.0,0.06983436]
[1763024568306,0.86004699,103640.0,103630.0,0.02708436]
[1763024568722,0.86004699,103640.0,103630.0,0.09708436]
[1763024569406,0.86004699,103640.0,103630.0,0.07708436]
[1763024569824,0.91455391,103640.0,103630.0,0.07708436]
[1763024570283,0.91455391,103640.0,103630.0,0.09708436]
[1763024570482,0.91455391,103640.0,103630.0,0.07708436]
[1763024570641,1.16619883,103640.0,103630.0,0.07708436]
[1763024570852,0.91455391,103640.0,103630.0,0.07708436]
[1763024571233,1.12248191,103640.0,103630.0,0.06207436]
[1763024573017,1.12248191,103640.0,103630.0,0.08207436]
[1763024573018,1.28341418,103640.0,103630.0,0.08207436]
[1763024573215,1.26537159,103640.0,103630.0,0.06207436]
[1763024573617,1.26537159,103640.0,103630.0,0.08207436]
[1763024574503,1.26537159,103640.0,103630.0,0.06207436]
[1763024574891,1.36177107,103640.0,103630.0,0.06207436]
[1763024575767,1.36177107,103640.0,103630.0,0.08207436]
[1763024575969,1.36177107,103640.0,103630.0,0.06207436]
[1763024576179,1.37985977,103640.0,103630.0,0.06207436]
[1763024577759,1.37985977,103640.0,103630.0,0.05048436]
[1763024578245,1.35089471,103640.0,103630.0,0.05048436]
[1763024579128,1.33280601,103640.0,103630.0,0.05048436]
[1763024579359,1.35089568,103640.0,103630.0,0.05048436]
[1763024580317,1.12948831,103640.0,103630.0,0.05048436]
[1763024580519,0.59027409,103640.0,103630.0,0.07048436]
[1763024580724,1.2652862,103640.0,103630.0,0.07048436]
[1763024580945,1.2652862,103640.0,103630.0,0.05048436]
[1763024581146,1.2652862,103640.0,103630.0,0.09252436]
[1763024581356,0.57948409,103640.0,103630.0,0.14436436]
[1763024581532,1.2544962,103640.0,103630.0,0.10437436]
[1763024581728,1.92950831,103640.0,103630.0,0.09252436]
[1763024581931,1.92950831,103640.0,103630.0,0.10252436]
[1763024582127,1.95847566,103640.0,103630.0,0.10252436]
[1763024582330,2.05487514,103640.0,103630.0,0.10252436]
[1763024584973,1.39065303,103640.0,103630.0,0.10252436]
[1763024585199,2.05487514,103640.0,103630.0,0.10252436]
[1763024588977,2.05487514,103640.0,103630.0,0.05252436]
[1763024589200,2.07571566,103640.0,103630.0,0.05252436]
[1763024589326,2.05487514,103640.0,103630.0,0.05252436]
[1763024589744,2.05387514,103640.0,103630.0,0.05252436]
[1763024590058,2.05487514,103640.0,103630.0,0.05252436]
[1763024590324,2.05587514,103640.0,103630.0,0.05252436]
[1763024592661,2.0767126,103640.0,103630.0,0.01048436]
[1763024596970,1.63422196,103640.0,103630.0,0.01048436]
[1763024605178,1.64326316,103640.0,103630.0,0.01048436]
[1763024605647,1.68522316,103640.0,103630.0,0.01048436]
[1763024614303,1.69522315,103640.0,103630.0,1e-08]
[1763024614858,1.72119909,103640.0,103630.0,1e-08]
[1763024615492,1.71819909,103640.0,103630.0,1e-08]
[1763024616109,0.83224551,103640.0,103630.0,1e-08]
[1763024616335,0.80626957,103640.0,103630.0,1e-08]
[1763024616554,0.86691648,103640.0,103630.0,1e-08]
[1763024618042,0.82495648,103640.0,103630.0,1e-08]
[1763024618246,0.86691648,103640.0,103630.0,1e-08]
[1763024618451,1.16223434,103640.0,103630.0,1e-08]
[1763024619062,1.12756337,103640.0,103630.0,1e-08]
[1763024619275,1.16223434,103640.0,103630.0,1e-08]
[1763024619482,1.12756337,103640.0,103630.0,1e-08]
[1763024619872,1.11756338,103640.0,103630.0,1e-08]
[1763024620970,1.07560338,103640.0,103630.0,1e-08]
[1763024621087,1.11756338,103640.0,103630.0,1e-08]
[1763024621557,1.11755062,103640.0,103630.0,1e-08]
[1763024623126,0.82223276,103640.0,103630.0,1e-08]
[1763024624131,1.11755062,103640.0,103630.0,1e-08]
[1763024628774,0.82223276,103640.0,103630.0,1e-08]
[1763024630240,0.83223275,103640.0,103630.0,1e-08]
[1763024635216,0.86690372,103640.0,103630.0,1e-08]
[1763024638149,0.82494372,103640.0,103630.0,1e-08]
[1763024638346,0.86686372,103640.0,103630.0,1e-08]
[1763024642302,1.12026158,103640.0,103630.0,1e-08]
[1763024642480,1.16218158,103640.0,103630.0,1e-08]
[1763024642906,1.12026158,103640.0,103630.0,1e-08]
[1763024643069,1.16218158,103640.0,103630.0,1e-08]
[1763024643270,1.13620564,103640.0,103630.0,1e-08]
[1763024644240,1.16225547,103640.0,103630.0,1e-08]
[1763024644444,1.13620564,103640.0,103630.0,1e-08]
[1763024645048,1.16226066,103640.0,103630.0,1e-08]
[1763024648018,1.11034067,103640.0,103630.0,1e-08]
[1763024648230,1.15226067,103640.0,103630.0,1e-08]
[1763024657092,0.85694281,103640.0,103630.0,1e-08]
[1763024662490,0.85695045,103640.0,103630.0,1e-08]
[1763024663878,0.81503045,103640.0,103630.0,1e-08]
[1763024664098,0.78035948,103640.0,103630.0,1e-08]
[1763024664593,0.30675126,103640.0,103630.0,1e-08]
[1763024664811,0.60369624,103640.0,103630.0,1e-08]
[1763024665015,0.82522863,103640.0,103630.0,1e-08]
[1763024665267,0.23641304,103630.0,103620.0,0.08639]
[1763024665468,0.25448995,103630.0,103620.0,0.10639]
[1763024665682,0.25448995,103630.0,103620.0,0.12244]
[1763024665891,0.3502244,103630.0,103620.0,0.12244]
[1763024666095,0.79328918,103630.0,103620.0,0.12244]
[1763024666328,0.48691575,103630.0,103620.0,0.10244]
[1763024666555,0.48891575,103630.0,103620.0,0.12244]
[1763024666815,0.49091575,103630.0,103620.0,0.12244]
[1763024667024,0.49091575,103630.0,103620.0,0.10244]
[1763024667247,0.71244814,103630.0,103620.0,0.10244]
[1763024667456,0.97455748,103630.0,103620.0,0.07824]
[1763024667666,0.97255748,103630.0,103620.0,0.07824]
[1763024667887,0.97355748,103630.0,103620.0,0.12016]
[1763024668095,0.98534748,103630.0,103620.0,0.10411]
[1763024670429,1.68156226,103630.0,103620.0,0.05]
[1763024670642,1.68156226,103630.0,103620.0,0.09192]
[1763024670822,1.92406226,103630.0,103620.0,0.09216223]
[1763024671971,1.24867679,103630.0,103620.0,0.09216223]
[1763024672258,1.22784918,103630.0,103620.0,0.10457223]
[1763024673492,0.23643167,103620.0,103610.0,4.66e-05]
[1763024673704,1.71247622,103620.0,103610.0,4.66e-05]
[1763024674138,1.74144959,103620.0,103610.0,4.66e-05]
[1763024674769,1.74244959,103620.0,103610.0,4.66e-05]
[1763024675730,1.74344959,103620.0,103610.0,4.66e-05]
[1763024679083,1.74344959,103620.0,103610.0,0.00028886]
[1763024681279,0.39267525,103620.0,103610.0,0.00028886]
[1763024681494,0.83574003,103620.0,103610.0,0.05185886]
[1763024682175,0.8176593,103620.0,103610.0,0.05185886]
[1763024682839,0.8176593,103620.0,103610.0,0.07185886]
[1763024683050,0.8176593,103620.0,103610.0,0.05185886]
[1763024683266,1.03919169,103620.0,103610.0,0.02911886]
[1763024683938,0.03097337,103620.0,103610.0,0.24489042]
[1763024684176,0.81193743,103620.0,103610.0,0.24489042]
[1763024684390,0.81193743,103620.0,103610.0,0.26489042]
[1763024684617,0.48893743,103620.0,103610.0,0.26489042]
[1763024685250,0.76851869,103620.0,103610.0,0.26489042]
[1763024685675,0.81193743,103620.0,103610.0,0.26489042]
[1763024686533,0.6189245,103620.0,103610.0,0.26489042]
[1763024686764,0.39739211,103620.0,103610.0,0.48642281]
[1763024686986,0.39739211,103620.0,103610.0,0.26489042]
[1763024687205,0.39739211,103620.0,103610.0,0.49642281]
[1763024687647,0.39739211,103620.0,103610.0,0.27489042]
[1763024688185,0.59040504,103620.0,103610.0,0.27489042]
[1763024688596,0.39739211,103620.0,103610.0,0.27489042]
[1763024689550,0.59040504,103620.0,103610.0,0.27489042]
[1763024689753,0.39739211,103620.0,103610.0,0.27489042]
[1763024690382,0.59040504,103620.0,103610.0,0.30489042]
[1763024690613,0.59040504,103620.0,103610.0,0.32489042]
[1763024691041,0.59040504,103620.0,103610.0,0.10220886]
[1763024691042,1.25474647,103620.0,103610.0,0.10220886]
[1763024691250,1.03321408,103620.0,103610.0,0.15377886]
[1763024691449,1.03321408,103620.0,103610.0,0.17377886]
[1763024691710,1.03321408,103620.0,103610.0,0.15377886]
[1763024691897,1.03321408,103620.0,103610.0,0.17377886]
[1763024692102,1.03321408,103620.0,103610.0,0.15377886]
[1763024693393,1.03321408,103620.0,103610.0,0.17377886]
[1763024693993,1.03321408,103620.0,103610.0,0.15377886]
[1763024694214,0.81168169,103620.0,103610.0,0.34681042]
[1763024694437,0.5901493,103620.0,103610.0,0.36681042]
[1763024695164,0.81168169,103620.0,103610.0,0.17377886]
[1763024695406,1.03321408,103620.0,103610.0,0.15377886]
[1763024696310,1.03321408,103620.0,103610.0,0.17377886]
[1763024696494,1.1145798,103620.0,103610.0,0.17377886]
[1763024696727,1.1145798,103620.0,103610.0,0.15377886]
[1763024699490,1.33611219,103620.0,103610.0,0.15377886]
[1763024699674,1.33611219,103620.0,103610.0,0.13103886]
[1763024699884,1.1145798,103620.0,103610.0,0.13103886]
[1763024700089,1.33611219,103620.0,103610.0,0.15460886]
[1763024700334,2.01149936,103620.0,103610.0,0.06028886]
[1763024700552,2.04036564,103620.0,103610.0,0.10220886]
[1763024700987,1.37576847,103620.0,103610.0,0.10220886]
[1763024701197,2.28286564,103620.0,103610.0,0.10220886]
[1763024701655,2.3118823,103620.0,103610.0,0.10220886]
[1763024704420,2.3857639,103620.0,103610.0,0.06028886]
[1763024704686,2.35464684,103620.0,103610.0,0.01028886]
[1763024704895,2.37462522,103620.0,103610.0,0.01028886]
[1763024705109,1.61826847,103620.0,103610.0,0.01028886]
[1763024705330,1.60647847,103620.0,103610.0,0.01028886]
[1763024705540,1.60547847,103620.0,103610.0,0.01028886]
[1763024705747,2.28486564,103620.0,103610.0,0.01028886]
[1763024709800,2.28486564,103620.0,103610.0,0.06028886]
[1763024710042,1.62026847,103620.0,103610.0,0.06028886]
[1763024710271,1.23429534,103620.0,103610.0,0.11125886]
[1763024710714,0.95471408,103620.0,103610.0,0.11125886]
[1763024710946,1.05618169,103620.0,103610.0,0.11125886]
[1763024711386,1.27771408,103620.0,103610.0,0.13125886]
[1763024711617,1.37411356,103620.0,103610.0,0.11125886]
[1763024712348,1.59564595,103620.0,103610.0,0.08855886]
[1763024712773,1.59564595,103620.0,103610.0,0.06028886]
[1763024712774,2.29990104,103620.0,103610.0,0.06028886]
[1763024713919,2.28182312,103620.0,103610.0,0.06028886]
[1763024714325,1.61722595,103620.0,103610.0,0.06028886]
[1763024714727,2.28182312,103620.0,103610.0,0.06028886]
[1763024715142,2.31083978,103620.0,103610.0,0.06028886]
[1763024715630,2.32891844,103620.0,103610.0,0.06028886]
[1763024717721,2.29990178,103620.0,103610.0,0.06028886]
[1763024717951,2.29990178,103620.0,103590.0,0.0004]
[1763024717952,0.19305019,103600.0,103590.0,0.0004]
[1763024718176,1.90801479,103600.0,103590.0,0.0004]
[1763024718393,1.02188523,103600.0,103590.0,0.05137]
[1763024718609,1.24341762,103600.0,103590.0,0.05137]
[1763024718847,1.05086487,103600.0,103590.0,0.05137]
[1763024719070,0.90319119,103600.0,103590.0,0.05137]
[1763024719497,1.19858229,103600.0,103590.0,0.05137]
[1763024720385,0.87658229,103600.0,103590.0,0.05137]
[1763024720614,0.58119119,103600.0,103590.0,0.26443882]
[1763024720836,0.58119119,103600.0,103590.0,0.05137]
[1763024721663,0.58119119,103600.0,103590.0,0.26443882]
[1763024721865,0.58119119,103600.0,103590.0,0.07137]
[1763024722069,0.58119119,103600.0,103590.0,0.05137]
[1763024722267,0.28580009,103600.0,103590.0,0.24443882]
[1763024722498,0.28580009,103600.0,103590.0,0.26443882]
[1763024722906,0.07344488,103600.0,103590.0,0.26443882]
[1763024723696,0.07344488,103600.0,103590.0,0.24492346]
[1763024723903,0.07344488,103600.0,103590.0,0.26492346]
[1763024724326,0.26649507,103600.0,103590.0,0.26492346]
[1763024725213,0.07344488,103600.0,103590.0,0.26492346]
[1763024725413,0.26649507,103600.0,103590.0,0.26492346]
[1763024725661,0.34198684,103600.0,103590.0,0.26492346]
[1763024725857,0.34198684,103600.0,103590.0,0.24492346]
[1763024726029,0.34198684,103600.0,103590.0,0.26492346]
[1763024726896,0.34198684,103600.0,103590.0,0.24492346]
[1763024727103,0.34198684,103600.0,103590.0,0.26492346]
[1763024728462,0.07344488,103600.0,103590.0,0.28688346]
[1763024728678,0.07344488,103600.0,103590.0,0.60227456]
[1763024728679,0.04446524,103600.0,103590.0,0.60227456]
[1763024728852,0.04446524,103600.0,103590.0,0.30688346]
[1763024730867,0.04346524,103600.0,103590.0,0.30688346]
[1763024731095,0.23651543,103600.0,103590.0,0.28788346]
[1763024731345,0.23651543,103600.0,103590.0,0.30788346]
[1763024731520,0.04346524,103600.0,103590.0,0.30788346]
[1763024731688,0.23651543,103600.0,103590.0,0.30788346]
[1763024733416,0.23651543,103600.0,103590.0,0.09481464]
[1763024733620,0.53190653,103600.0,103590.0,0.09481464]
[1763024734611,0.56088197,103600.0,103590.0,0.09477464]
[1763024735184,0.56088197,103600.0,103590.0,0.11477464]
[1763024735399,0.56088197,103600.0,103590.0,0.09477464]
[1763024735606,0.56088197,103600.0,103590.0,0.12477464]
[1763024735820,0.56088197,103600.0,103590.0,0.10477464]
[1763024736030,0.65728145,103600.0,103590.0,0.10477464]
[1763024736241,0.65728145,103600.0,103590.0,0.12477464]
[1763024736591,0.65728145,103600.0,103590.0,0.10477464]
[1763024737585,0.98389775,103600.0,103590.0,0.06285464]
[1763024737791,0.98389775,103600.0,103590.0,0.10477464]
[1763024738670,0.98389775,103600.0,103590.0,0.12477464]
[1763024739754,0.98389775,103600.0,103590.0,0.10477464]
[1763024741436,0.98389775,103600.0,103590.0,0.10377464]
[1763024741653,0.98389775,103600.0,103590.0,0.08107464]
[1763024741875,1.60228885,103600.0,103590.0,0.01088464]
[1763024742099,1.36140016,103600.0,103590.0,0.05280464]
[1763024743246,1.36240016,103600.0,103590.0,0.05280464]
[1763024744583,1.36340016,103600.0,103590.0,0.05280464]
[1763024745003,1.60428885,103600.0,103590.0,0.05280464]
[1763024745215,1.30889775,103600.0,103590.0,0.05280464]
[1763024745434,1.32698568,103600.0,103590.0,0.05280464]
[1763024745661,1.86487678,103600.0,103590.0,0.05280464]
[1763024745885,1.86487678,103600.0,103590.0,0.01088464]
[1763024746104,1.86487678,103600.0,103590.0,1e-08]
[1763024746322,1.90679678,103600.0,103590.0,1e-08]
[1763024746986,1.66429298,103600.0,103590.0,1e-08]
[1763024747205,1.69328759,103600.0,103590.0,1e-08]
[1763024748723,1.69328759,103600.0,103570.0,1e-08]
[1763024748724,0.5595062,103580.0,103570.0,1e-08]
[1763024748944,1.61522418,103580.0,103570.0,1e-08]
[1763024749398,1.61908958,103580.0,103570.0,1e-08]
[1763024749821,1.69699188,103580.0,103570.0,1e-08]
[1763024750753,1.6879596,103580.0,103570.0,1e-08]
[1763024751182,1.63715414,103580.0,103570.0,0.00200001]
[1763024751621,1.63715414,103580.0,103570.0,0.00400001]
[1763024752906,1.63710487,103580.0,103570.0,0.00400001]
[1763024753098,1.59518487,103580.0,103570.0,0.00400001]
[1763024753350,1.63710487,103580.0,103570.0,0.00400001]
[1763024754239,1.60587967,103580.0,103570.0,1e-08]
[1763024754462,1.66609948,103580.0,103570.0,0.00048479]
[1763024754933,1.63710487,103580.0,103570.0,0.00048479]
[1763024755846,1.59518487,103580.0,103570.0,0.00048479]
[1763024756057,1.63714487,103580.0,103570.0,0.00048479]
[1763024756731,1.59518487,103580.0,103570.0,0.00048479]
[1763024756947,1.63714487,103580.0,103570.0,0.00048479]
[1763024757601,0.26771267,103570.0,103560.0,0.0004]
[1763024757814,1.26830074,103570.0,103560.0,0.0004]
[1763024758302,1.27216649,103570.0,103560.0,0.0004]
[1763024758735,1.51466649,103570.0,103560.0,0.0004]
[1763024761488,1.83766649,103570.0,103560.0,1e-08]
[1763024761689,0.36641874,103550.0,103540.0,0.0004]
[1763024761922,1.59545291,103550.0,103510.0,0.0204]
[1763024762125,0.04341874,103510.0,103500.0,0.01209]
[1763024762293,0.8510839,103510.0,103500.0,0.03624]
[1763024762488,0.8510839,103510.0,103500.0,0.05228]
[1763024762705,0.8827684,103510.0,103500.0,0.05228]
[1763024762908,0.71482609,103510.0,103500.0,0.01255669]
[1763024763067,0.71482609,103510.0,103500.0,0.00046669]
[1763024763267,1.03782609,103510.0,103500.0,0.00046669]
[1763024763559,1.03782609,103510.0,103500.0,0.00216473]
[1763024764007,1.05578612,103510.0,103500.0,0.00216473]
[1763024764601,1.05678612,103510.0,103500.0,0.00216473]
[1763024766026,1.05578612,103510.0,103500.0,0.00216473]
[1763024766453,1.05678612,103510.0,103500.0,0.00216473]
[1763024766665,1.05778612,103510.0,103500.0,0.00216473]
[1763024768349,1.48062601,103510.0,103500.0,0.00216473]
[1763024768566,1.48062601,103510.0,103500.0,1e-08]
[1763024768780,0.55967412,103490.0,103480.0,0.01032]
[1763024768994,1.07891472,103490.0,103480.0,0.01040979]
[1763024769217,1.11059922,103490.0,103480.0,0.01040979]
[1763024769451,1.00045351,103490.0,103480.0,0.0108952]
[1763024769666,1.00045351,103490.0,103480.0,0.0501052]
[1763024769880,1.00045351,103490.0,103480.0,0.0108952]
[1763024770085,1.03213801,103490.0,103480.0,0.0108952]
[1763024770313,1.12853749,103490.0,103480.0,0.0009752]
[1763024770524,0.7056976,103490.0,103480.0,0.0009752]
[1763024770732,1.55137738,103490.0,103480.0,0.0009752]
[1763024770938,1.51969288,103490.0,103480.0,0.0009752]
[1763024771147,1.55137738,103490.0,103480.0,0.0009752]
[1763024771575,0.00966557,103460.0,103430.0,0.323]
[1763024771790,0.46625863,103440.0,103430.0,0.22920436]
[1763024772001,0.04341874,103440.0,103430.0,0.01292687]
[1763024772217,0.04341874,103440.0,103430.0,0.02922687]
[1763024772433,0.65960743,103440.0,103430.0,0.02922687]
[1763024772643,0.65960743,103440.0,103430.0,0.24550436]
[1763024772851,0.65960743,103440.0,103430.0,0.05213687]
[1763024773059,0.23676754,103440.0,103430.0,0.05213687]
[1763024773356,0.98260743,103440.0,103430.0,0.05213687]
[1763024773561,1.42339749,103440.0,103430.0,0.02922687]
[1763024773801,1.42339749,103440.0,103430.0,0.03022687]
[1763024774022,1.42339749,103440.0,103430.0,0.00146687]
[1763024774242,1.42339749,103440.0,103420.0,0.01209]
[1763024774243,0.19336749,103430.0,103420.0,0.00455687]
[1763024774465,0.59145204,103440.0,103430.0,0.02876]
[1763024774678,0.06137153,103440.0,103430.0,0.22212749]
[1763024774901,0.04341874,103440.0,103430.0,0.24503749]
[1763024775317,0.42283989,103450.0,103440.0,0.1933488]
[1763024775534,0.21128683,103450.0,103440.0,0.03921]
[1763024775754,0.67754546,103450.0,103440.0,0.03921]
[1763024776439,0.25470557,103450.0,103440.0,0.2325588]
[1763024776644,0.67754546,103450.0,103440.0,0.03921]
[1763024776853,0.67754546,103450.0,103440.0,0.2325588]
[1763024777083,0.25470557,103450.0,103440.0,0.2325588]
[1763024777288,0.25470557,103450.0,103440.0,0.03921]
[1763024777481,0.75561691,103450.0,103440.0,0.04018129]
[1763024778961,0.33277702,103450.0,103440.0,0.04018129]
[1763024779163,0.75561691,103450.0,103440.0,0.04018129]
[1763024780028,0.75561691,103450.0,103440.0,0.01727129]
[1763024780245,0.78236197,103450.0,103440.0,0.00097129]
[1763024780453,1.20520186,103450.0,103440.0,0.00097129]
[1763024781130,0.8646971,103450.0,103440.0,0.00097129]
[1763024781598,0.89624754,103450.0,103440.0,0.00097129]
[1763024781810,0.89724754,103450.0,103440.0,0.00097129]
[1763024782019,0.89824754,103450.0,103440.0,0.00097129]
[1763024782442,1.22124754,103450.0,103440.0,0.00097129]
[1763024784311,1.46374754,103450.0,103440.0,0.00097129]
[1763024785876,0.8682308,103440.0,103430.0,0.04264]
[1763024786060,0.99158522,103440.0,103430.0,0.04264]
[1763024786878,0.23678623,103430.0,103420.0,0.00013512]
[1763024787092,1.09191619,103430.0,103420.0,0.00013512]
[1763024787308,1.12065817,103430.0,103420.0,0.00013512]
[1763024787522,1.12346663,103430.0,103420.0,1e-08]
[1763024787738,1.25030197,103430.0,103420.0,1e-08]
[1763024788424,0.23684233,103400.0,103390.0,0.02452]
[1763024788630,0.75997407,103400.0,103390.0,0.02461011]
[1763024789095,0.75997407,103400.0,103390.0,0.26972241]
[1763024789320,0.01795672,103400.0,103390.0,0.26972241]
[1763024789535,0.06137546,103400.0,103390.0,0.26972241]
[1763024789752,0.31396297,103400.0,103390.0,0.26972241]
[1763024790184,0.06137546,103400.0,103390.0,0.26972241]
[1763024792280,0.06137546,103400.0,103390.0,0.28972241]
[1763024792743,0.06137546,103400.0,103390.0,0.29093735]
[1763024794301,0.06137546,103400.0,103390.0,0.30917735]
[1763024794302,0.50738656,103400.0,103390.0,0.30917735]
[1763024794724,0.06137546,103400.0,103390.0,0.28917735]
[1763024795085,0.06137546,103400.0,103390.0,0.30917735]
[1763024795285,0.50738656,103400.0,103390.0,0.28917735]
[1763024795495,0.75997407,103400.0,103390.0,0.09573505]
[1763024795715,0.85531218,103400.0,103390.0,0.09573505]
[1763024795918,0.85531218,103400.0,103390.0,0.11573505]
[1763024796163,0.75997407,103400.0,103390.0,0.09573505]
[1763024796364,0.75997407,103400.0,103390.0,0.11573505]
[1763024796569,0.75997407,103400.0,103390.0,0.28917735]
[1763024796762,0.75997407,103400.0,103390.0,0.30917735]
[1763024797154,0.75997407,103400.0,103390.0,0.05297505]
[1763024797359,0.88680941,103400.0,103390.0,0.05656505]
[1763024797517,0.88680941,103400.0,103390.0,0.07656505]
[1763024797726,0.88680941,103400.0,103390.0,0.05656505]
[1763024797940,0.88680941,103400.0,103390.0,0.09197505]
[1763024798114,0.38163439,103400.0,103390.0,0.07197505]
[1763024798304,0.79040993,103400.0,103390.0,0.09453505]
[1763024798541,0.79040993,103400.0,103390.0,0.11453505]
[1763024798703,0.79040847,103400.0,103390.0,0.09453505]
[1763024798905,0.79040847,103400.0,103390.0,0.04917505]
[1763024799103,0.79040847,103400.0,103390.0,0.09197505]
[1763024799356,0.88680795,103400.0,103390.0,0.07197505]
[1763024799779,0.88680795,103400.0,103390.0,0.08197505]
[1763024800597,0.79040847,103400.0,103390.0,0.08197505]
[1763024800803,0.75997261,103400.0,103390.0,0.10449505]
[1763024800945,0.75997261,103400.0,103390.0,0.08193505]
[1763024801149,0.75997261,103400.0,103390.0,0.10193505]
[1763024801348,0.75997261,103400.0,103390.0,0.08193505]
[1763024801848,0.85637209,103400.0,103390.0,0.08193505]
[1763024802092,0.75997261,103400.0,103390.0,0.08193505]
[1763024802472,0.75997261,103400.0,103390.0,0.10193505]
[1763024802671,0.75997261,103400.0,103390.0,0.08193505]
[1763024803101,0.25479759,103400.0,103390.0,0.08193505]
[1763024803300,0.75997261,103400.0,103390.0,0.08193505]
[1763024803504,0.75997261,103400.0,103390.0,0.10193505]
[1763024803714,0.75997261,103400.0,103390.0,0.08193505]
[1763024804074,0.79608009,103400.0,103390.0,0.06652505]
[1763024805113,0.28523345,103400.0,103390.0,0.10193505]
[1763024805321,0.79040847,103400.0,103390.0,0.08193505]
[1763024805896,0.79040847,103400.0,103390.0,0.10193505]
[1763024806094,0.79040847,103400.0,103390.0,0.08193505]
[1763024806718,0.79040847,103400.0,103390.0,0.10449505]
[1763024806930,0.75997261,103400.0,103390.0,0.10449505]
[1763024807387,0.75997261,103400.0,103390.0,0.08193505]
[1763024807614,0.79341073,103400.0,103390.0,0.08193505]
[1763024808055,0.79341073,103400.0,103390.0,0.10193505]
[1763024808276,0.79341073,103400.0,103390.0,0.10449505]
[1763024808277,0.25479759,103400.0,103390.0,0.10449505]
[1763024808520,0.75997261,103400.0,103390.0,0.12449505]
[1763024808750,0.23684233,103400.0,103390.0,0.12449505]
[1763024808994,0.74201735,103400.0,103390.0,0.10449505]
[1763024809213,0.74201735,103400.0,103390.0,0.06652505]
[1763024809451,0.77043436,103400.0,103390.0,0.06652505]
[1763024809682,0.77553004,103400.0,103390.0,0.06652505]
[1763024809898,0.80394705,103400.0,103390.0,0.10193505]
[1763024810149,0.77553004,103400.0,103390.0,0.08193505]
[1763024810352,0.79354529,103400.0,103390.0,0.08193505]
[1763024810799,0.8219623,103400.0,103390.0,0.05410505]
[1763024810964,0.8219623,103400.0,103390.0,0.07410505]
[1763024811201,0.8219623,103400.0,103390.0,0.08652505]
[1763024811454,0.8219623,103400.0,103390.0,0.06652505]
[1763024811665,0.8219623,103400.0,103390.0,0.05410505]
[1763024812208,0.8219623,103400.0,103390.0,0.01130505]
[1763024812487,0.8219623,103400.0,103390.0,0.05402505]
[1763024812646,1.11654529,103400.0,103390.0,0.05402505]
[1763024813259,1.15397553,103400.0,103390.0,0.05402505]
[1763024814486,1.12555852,103400.0,103390.0,0.05402505]
[1763024814677,0.6203835,103400.0,103390.0,0.05402505]
[1763024814906,1.12555852,103400.0,103390.0,0.07402505]
[1763024815120,1.12555852,103400.0,103390.0,0.05402505]
[1763024815660,0.6203835,103400.0,103390.0,0.08185505]
[1763024815867,1.12555852,103400.0,103390.0,0.08185505]
[1763024816285,1.12555852,103400.0,103390.0,0.10185505]
[1763024816514,1.12568825,103400.0,103390.0,0.08185505]
[1763024816696,1.12568825,103400.0,103390.0,0.10185505]
[1763024816914,1.12568825,103400.0,103390.0,0.08185505]
[1763024817540,1.12568825,103400.0,103390.0,0.05402505]
[1763024817719,0.62051323,103400.0,103390.0,0.05402505]
[1763024817926,1.12568825,103400.0,103390.0,0.05402505]
[1763024818726,1.12568825,103400.0,103390.0,0.08644505]
[1763024818977,1.15410526,103400.0,103390.0,0.06644505]
[1763024819595,1.12568825,103400.0,103390.0,0.08185505]
[1763024820011,1.15410526,103400.0,103390.0,0.08185505]
[1763024820621,1.12568825,103400.0,103390.0,0.06644505]
[1763024820823,1.12568825,103400.0,103390.0,0.05402505]
[1763024821053,1.12568457,103400.0,103390.0,0.05402505]
[1763024821483,1.12568457,103400.0,103390.0,0.01130505]
[1763024821690,1.15410158,103400.0,103390.0,0.08164505]
[1763024822292,1.15410158,103400.0,103390.0,0.10164505]
[1763024822494,1.15410158,103400.0,103390.0,0.08164505]
[1763024822702,1.15410158,103400.0,103390.0,0.10164505]
[1763024822904,1.15410158,103400.0,103390.0,0.08164505]
[1763024823061,1.12568457,103400.0,103390.0,0.10164505]
[1763024823267,1.15410158,103400.0,103390.0,0.08164505]
[1763024823742,1.12568457,103400.0,103390.0,0.10164505]
[1763024823930,1.12568457,103400.0,103390.0,0.08164505]
[1763024824174,1.12568457,103400.0,103390.0,0.10164505]
[1763024824842,0.90151407,103400.0,103390.0,0.10619505]
[1763024825054,1.2877094,103400.0,103390.0,0.10619505]
[1763024825478,1.2877094,103400.0,103390.0,0.12619505]
[1763024825692,1.2877094,103400.0,103390.0,0.10619505]
[1763024825922,0.62050955,103400.0,103390.0,0.10619505]
[1763024826138,1.2877094,103400.0,103390.0,0.12619505]
[1763024826413,1.2877094,103400.0,103390.0,0.10619505]
[1763024826414,1.27866842,103400.0,103390.0,0.10619505]
[1763024826850,1.30855075,103400.0,103390.0,0.10619505]
[1763024827283,2.00416761,103400.0,103390.0,0.08164505]
[1763024827533,1.9757506,103400.0,103390.0,0.05398505]
[1763024827977,2.00416761,103400.0,103390.0,0.05398505]
[1763024830823,1.9757506,103400.0,103390.0,0.05398505]
[1763024831054,1.30855075,103400.0,103390.0,0.05398505]
[1763024831282,2.00421509,103400.0,103390.0,0.07398505]
[1763024831501,1.30855075,103400.0,103390.0,0.08293505]
[1763024832367,1.9757506,103400.0,103390.0,0.08293505]
[1763024832588,1.9757506,103400.0,103390.0,0.06634505]
[1763024833018,1.9757506,103400.0,103390.0,0.05398505]
[1763024833438,1.95491241,103400.0,103390.0,0.05398505]
[1763024834314,1.97572009,103400.0,103390.0,0.05390505]
[1763024835386,1.95491241,103400.0,103390.0,0.05390505]
[1763024836801,2.01355802,103400.0,103390.0,0.01130505]
[1763024837022,1.97571012,103400.0,103390.0,0.01130505]